Cogmind - Beta 14 @@@ ROGUE MODE // 2024.09.20 @ 14:27:04 Player: Bunch Result: Destroyed by DE-XIL(R) with Subdweller Laser Performance ------------- Evolutions (0) 0 Regions Visited (2) 400 Robots Destroyed (25) 125 Value Destroyed (351) 351 Prototype IDs (0) 0 Alien Tech Used (0) 0 Bonus (0) 0 TOTAL SCORE: 876 Bonus ------- None Cogmind --------- Core Integrity 0/250 Matter 221/300 Energy 98/100 System Corruption 0% Temperature Cool (6) Movement Rolling (100) Location -10/Subcaves Parts ------- > --- POWER (1) -------- (None) > --- PROPULSION (2) --- Compact Wheel > --- UTILITY (2) ------ Disposable Heat Sink Medium Storage Unit > --- WEAPON (2) ------- Beam Cannon Mining Claw > --- INVENTORY (10) --- Small Storage Unit Scrap Shield Mining Laser Peak State ------------ > --- POWER ------------ Ion Engine > --- PROPULSION ------- Light Treads Light Treads > --- UTILITY ---------- Medium Storage Unit Shield Generator > --- WEAPON ----------- Assault Rifle Mining Claw > --- INVENTORY -------- Ion Engine Wheel Compact Wheel Compact Wheel Compact Wheel Small Storage Unit EM Pulse Gun Beam Cannon Grenade Launcher Mining Laser [Rating: 9] Favorites ----------- Power Ion Engine Engine Ion Engine Propulsion Light Treads Treads Light Treads Wheel Compact Wheel Utility Medium Storage Unit Device Shield Generator Storage Medium Storage Unit Weapon Assault Rifle Energy Gun EM Pulse Gun Energy Cannon Beam Cannon Ballistic Gun Assault Rifle Launcher Grenade Launcher Special Weapon Mining Laser Slashing Weapon Mining Claw Build | -11 -10 -10 ------- Run | Yrd Mat Sub Slots Evolved . | . . . Power . | . . . Propulsion . | . . . Utility . | . . . Weapon . | . . . Parts Attached 23 | 6 7 10 Power 5 | 1 2 2 Engine 5 | 1 2 2 Core . | . . . Reactor . | . . . Propulsion 4 | 2 . 2 Treads 2 | 2 . . Leg . | . . . Wheel 2 | . . 2 Hover . | . . . Flight . | . . . Utility 6 | 1 4 1 Device 2 | . 1 1 Storage 4 | 1 3 . Processor . | . . . Hackware . | . . . Protection . | . . . Artifact . | . . . Weapon 8 | 2 1 5 Energy Gun 1 | . . 1 Energy Cannon 1 | . . 1 Ballistic Gun 2 | 2 . . Ballistic Cannon . | . . . Launcher 1 | . . 1 Special Weapon 1 | . . 1 Impact Weapon . | . . . Slashing Weapon 2 | . 1 1 Piercing Weapon . | . . . Special Melee Weapon . | . . . Unidentified Prototypes . | . . . Parts Lost 11 | . 1 10 Power 4 | . 1 3 Propulsion 3 | . . 3 Utility 1 | . . 1 Weapon 3 | . . 3 Highest Loss Streak 6 | . 1 6 To Critical Strikes . | . . . Average Slot Usage (%) 88 | . 93 72 Engine 13 | . 13 9 Treads 22 | . 28 1 Wheel 3 | . . 14 Device 7 | . 7 8 Storage 14 | . 14 14 Energy Cannon 1 | . . 4 Ballistic Gun 14 | . 18 . Launcher 1 | . . 5 Slashing Weapon 9 | . 9 10 Peak Build Rating 9 | 6 9 8 Average Rating 6 | 4 7 5 On Entrance 4 | . 6 8 Naked Turns . | . . . Heaviest Build 86 | 11 86 21 Greatest Support 40 | 40 40 40 Greatest Overweight (x) 5 | . 2 5 Average Overweight (x) . | . . . Largest Inventory Capacity 25 | 8 25 10 Average Capacity 11 | 7 12 10 Most Carried 10 | 3 10 8 Average Carried 6 | 1 7 5 Final Capacity 10 | 8 10 10 Final Carried 8 | 3 8 4 Class Distribution -------------------- 98% | Mutant Dominant Class ---------------- Mutant | -10/Materials Mutant | -10/Subcaves Resources | -11 -10 -10 ----------- Run | Yrd Mat Sub Matter Collected 583 | 246 227 110 Remotely . | . . . Salvage Created 604 | . 494 110 Parts 47 | . 38 9 Haulers Intercepted 1 | . 1 . Recyclers Shooed 3 | . 3 . Parts Field Recycled . | . . . Retrieved Matter . | . . . Parts Self-Destructed 5 | . . 5 Prevented . | . . . Kills | -11 -10 -10 ------- Run | Yrd Mat Sub Combat Hostiles Destroyed 16 | . 10 6 Melee 3 | . 3 . Guns 7 | . 7 . AOE 6 | . . 6 Classes Destroyed 10 | . 7 3 Worker 3 | . 3 . Builder 1 | . 1 . Tunneler 1 | . 1 . Hauler 1 | . 1 . Recycler 2 | . 2 . Turret 1 | . . 1 Swarmer 11 | . 7 4 Grunt 3 | . 3 . Cobbler 1 | . . 1 Subdweller 2 | . . 2 Best Kill Streak 5 | . 5 5 Combat Bots Only 4 | . 3 4 Max Kills in Single Turn 2 | . 1 2 Gunslinging . | . . . Exploded 2 | . . 2 Melee 1 | . 1 . Uniques/NPCs Destroyed . | . . . Combat | -11 -10 -10 -------- Run | Yrd Mat Sub Hostile Shots Fired 159 | . 71 88 Missed 48 | . 11 37 Damage Taken 1282 | . 414 868 Core 266 | . 49 217 Absorbed by Shields 173 | . 111 62 Core Remaining (%) 100 | 100 . . Volleys Fired 74 | . 54 20 Largest 2 | . 2 2 Hottest 60 | . 40 60 Shots Fired 90 | . 68 22 Gun 73 | . 68 5 Cannon 7 | . . 7 Launcher 10 | . . 10 Special . | . . . Kinetic 70 | . 68 2 Thermal 7 | . . 7 Explosive 10 | . . 10 Electromagnetic 3 | . . 3 Robot Hit Streak 7 | . 5 7 Robot Miss Streak 7 | . 7 3 Penetration Max . | . . . Secondary Targets . | . . . Shots Hit Robots 51 | . 41 10 Core Hits 35 | . 21 14 Critical Kills . | . . . Critical Parts Destroyed . | . . . Critical Strikes . | . . . Melee Attacks 22 | . 21 1 Impact . | . . . Slashing 22 | . 21 1 Piercing . | . . . Sneak Attacks 8 | . 7 1 Combat Hostiles . | . . . Follow-up Attacks . | . . . Damage Inflicted 1354 | . 784 570 Guns 325 | . 290 35 Cannons 36 | . . 36 Explosions 449 | . . 449 Melee 544 | . 494 50 Ramming . | . . . Kinetic 304 | . 290 14 Thermal 36 | . . 36 Explosive 449 | . . 449 Electromagnetic 21 | . . 21 Impact . | . . . Slashing 544 | . 494 50 Piercing . | . . . Highest Corruption . | . . . Average Corruption . | . . . Corruption Purged . | . . . Corruption Blocked . | . . . Overload Shots . | . . . Overflow Damage 19 | . 19 . Projectiles . | . . . Explosions . | . . . Melee 19 | . 19 . Knockbacks . | . . . Impact . | . . . Kinetic . | . . . Secondary . | . . . Self-Inflicted Damage 58 | . . 58 Shots 2 | . . 2 Rammed . | . . . Targets Rammed . | . . . Kicked . | . . . Crushed . | . . . Highest Temperature 6 | . 6 . Average Temperature 6 | . 6 . Received Heat Transfer 290 | . 84 206 Siege Activations . | . . . Robots Corrupted . | . . . Combat Hostiles . | . . . Parts Fried . | . . . Impact Corruptions . | . . . Robots Melted . | . . . Combat Hostiles . | . . . Parts Melted . | . . . Heat Transferred 74 | . . 74 Parts Sabotaged . | . . . Parts Stolen . | . . . Parts Stripped . | . . . Power Chain Reactions . | . . . Alert | -11 -10 -10 ------- Run | Yrd Mat Sub Peak Influence 227 | . 227 . Initial . | . . . Average 82 | . 88 . Maximum Alert Level 1 | . 1 . Low Security (%) 89 | 100 88 . Level 1 10 | . 11 . Level 2 . | . . . Level 3 . | . . . Level 4 . | . . . Level 5 . | . . . High Security . | . . . Max Security . | . . . Squads Dispatched 1 | . 1 . Investigation 1 | . 1 . Extermination . | . . . Reinforcement . | . . . Assault . | . . . Garrison . | . . . Intercept . | . . . Searches Triggered . | . . . Construction Impeded . | . . . Haulers Reinforced . | . . . Active Scanning Responses . | . . . Cargo Convoy Interrupts . | . . . Stealth | -11 -10 -10 --------- Run | Yrd Mat Sub Distress Signals 1 | . 1 . Communications Jammed . | . . . Distress Signals . | . . . Times Spotted 29 | . 16 13 Peak Tracking Total 6 | . 4 6 Tactical Retreats 5 | . 3 2 Traps | -11 -10 -10 ------- Run | Yrd Mat Sub Traps Triggered 1 | . 1 . Indirectly . | . . . Trap Hack Attempts . | . . . Triggered . | . . . Disarmed 2 | . 2 . Reprogrammed . | . . . Reused . | . . . Traps Extracted . | . . . Installed . | . . . Triggered . | . . . Machines | -11 -10 -10 ---------- Run | Yrd Mat Sub Machines Disabled 3 | . . 3 Max in Single Turn 1 | . . 1 Machines Repaired . | . . . Machines Dismantled . | . . . Machines Sabotaged . | . . . Overloaded Fab Kills . | . . . Hacking | -11 -10 -10 --------- Run | Yrd Mat Sub Machines Accessed 2 | . 2 . Terminals 2 | . 2 . Fabricators . | . . . Repair Stations . | . . . Recycling Units . | . . . Scanalyzers . | . . . Garrison Access . | . . . Total Hacks 2 | . 2 . Successful 2 | . 2 . Failed . | . . . Catastrophic . | . . . Database Lockouts . | . . . Manual . | . . . Terminals 2 | . 2 . Fabricators . | . . . Repair Stations . | . . . Recycling Units . | . . . Scanalyzers . | . . . Garrison Access . | . . . Terminal Hacks 2 | . 2 . Record 1 | . 1 . Disarm Traps 1 | . 1 . Fabricator Hacks . | . . . Repair Station Hacks . | . . . Recycling Unit Hacks . | . . . Scanalyzer . | . . . Garrison Access Hacks . | . . . Unauthorized Hacks . | . . . Terminals . | . . . Fabricators . | . . . Repair Stations . | . . . Recycling Units . | . . . Scanalyzers . | . . . Garrison Access . | . . . Data Cores Recovered . | . . . Used . | . . . Hacking Detections 1 | . 1 . Full Trace Events . | . . . Feedback Events . | . . . Feedback Blocked . | . . . Robot Schematics Acquired . | . . . Robots Built . | . . . Authchips . | . . . Time . | . . . Total Robot Build Rating . | . . . Part Schematics Acquired . | . . . Parts Built . | . . . Authchips . | . . . Time . | . . . Total Part Build Rating . | . . . Parts Repaired . | . . . Time . | . . . Parts Recycled . | . . . Recycled Matter . | . . . Retrieved Matter . | . . . Retrieved Components . | . . . Parts Scanalyzed . | . . . Part Schematics Acquired . | . . . Parts Damaged . | . . . Bothacking | -11 -10 -10 ------------ Run | Yrd Mat Sub Used RIF Installer . | . . . Robots Hacked . | . . . Non-combat . | . . . Combat . | . . . Robot Hacks Applied . | . . . Relay Couplers Released . | . . . Fabnet Peak Effective % . | . . . Robots Rewired . | . . . Allies Hacked . | . . . Hacks Repelled . | . . . Allies | -11 -10 -10 -------- Run | Yrd Mat Sub Total Allies . | . . . Largest Group . | . . . Highest-Rated Group . | . . . Highest-Rated Ally . | . . . Total Orders . | . . . Ally Attacks . | . . . Total Damage . | . . . Kills . | . . . Allies Corrupted . | . . . Allies Melted . | . . . Intel | -11 -10 -10 ------- Run | Yrd Mat Sub Robot Analysis Total . | . . . Derelict Logs Recovered . | . . . Drone Launches . | . . . Drone Recoveries . | . . . Exploration | -11 -10 -10 ------------- Run | Yrd Mat Sub Turns Passed 1617 | 98 1202 317 Spaces Moved 794 | 58 554 182 Core 39 | 11 . 28 Treads 606 | 47 554 5 Legs . | . . . Wheels 149 | . . 149 Hover . | . . . Flight . | . . . Fastest Speed 50 | 50 160 100 Average Speed 162 | 139 177 123 Slowest Speed 320 | 160 320 300 Overloaded Moves . | . . . Propulsion Burnouts . | . . . Robots Hopped . | . . . Cave-ins Triggered . | . . . Exploration Rate (%) 27 | 5 67 11 Regions Visited 2 Branch Regions 1 Pre-discovered Areas . | . . . Known Exits Taken . | . . . Unknown Exits Taken 2 | 1 1 . Scrap Searched . | . . . Spaces Dug . | . . . Terrain Destroyed 44 | . . 44 Melee . | . . . Projectile . | . . . AOE 44 | . . 44 Terrain Rammed . | . . . Walls Destroyed . | . . . Machines Disabled . | . . . Actions | -11 -10 -10 --------- Run | Yrd Mat Sub Total 996 | 76 671 249 Wait 46 | . 13 33 Move 792 | 57 553 182 Hop . | . . . Pick Up 29 | 11 15 3 Fast Attach . | . . . Attach 18 | 6 4 8 Detach . | . . . Swap 5 | . 3 2 Drop 10 | 2 8 . Fire 74 | . 54 20 Melee 22 | . 21 1 Ram . | . . . Kick . | . . . Crush . | . . . Escape Stasis . | . . . Rewire . | . . . Trap . | . . . Miscellaneous . | . . . Route ------- -11/Scrapyard -10/Materials (discovered 5 exits: [*Mat x3] / [*Min] / [*Sub]) -10/Subcaves (discovered 1 exit: [*Rec]) History --------- Turn | Location | Event 18 | -11/Scrapyard | Discovered new exit (range 16) 99 | -11/Scrapyard | Entered Materials 310 | -10/Materials | Build established: Mutant 538 | -10/Materials | Discovered new exit (range 9) 902 | -10/Materials | Discovered new exit (range 12) 990 | -10/Materials | Discovered new exit (range 9) 1108 | -10/Materials | Discovered new exit (range 7) 1214 | -10/Materials | Discovered new exit (range 9) 1301 | -10/Materials | Entered Subcaves 1303 | -10/Subcaves | A swath of the cavern ceiling suddenly collapsed 1380 | -10/Subcaves | Lost 6 parts (1p2n1u2w) 1388 | -10/Subcaves | Core integrity fell below 50% 1488 | -10/Subcaves | Discovered new exit (range 11) 1497 | -10/Subcaves | Core integrity fell below 20% 1535 | -10/Subcaves | Lost 3 parts (1p1n1w) 1618 | -10/Subcaves | Destroyed by DE-XIL(R) with Subdweller Laser Last Messages --------------- 01492_ The unstable cave ceiling collapses. 01495_ Flight Unit fries itself beyond repair. 01495_ Lgt. Assault Rifle fries itself beyond repair. 01497_ Lgt. Ion Engine fries itself beyond repair. 01497_ Machine disabled. 01499_ S-10 Pest destroyed. 01500_ Ion Engine destroyed. 01501_ Lgt. Ion Engine fries itself beyond repair. 01501_ Machine disabled. 01504_ Lgt. Assault Rifle fries itself beyond repair. 01504_ Grenade Launcher destroyed. 01510_ Autobeam Turret destroyed. 01543_ Acquired 16 matter. 01545_ Subatomizers dissect the Ion Engine. 01556_ Acquired Ion Engine. 01585_ Subatomizers dissect the Disposable Heat Sink. 01590_ Acquired 5 matter. 01606_ Subatomizers dissect the Disposable Heat Sink, destroying it. DE-XIL(R) emerges from concealment. 01614_ Ion Engine destroyed. Map ----- +----------------------------------------------------+ | ?????????????????????????????????????# ?????? | | ??????????????????????????????????????? ?????? | | ???????????????????????????????????????#" ????? | | ?????????????????????????????????????????#" #?### | | ?????????????????????????????????????????# ## # | | ??????????????????????????????????????????# | | ????????????????????????????????????????### | | ???????????????????????????????????????# | | ???????????????????????????????????????# # | | ????????????????????????????????????# # | | ????????????????????????????????????# "## | | ????????????????????????????????????## ?? | | ???????????????# ??????????????????? ?? | | ???????????????" ??????????????????# "?? | | ?????????????""" #?????????????????# "?# | | ????????????" ?????????????????## ""?# | | ????????????" ????????????????? < ##??# | | ?????????????" ???????????????## # ####???## | | ???????????? " ????????????????######????## | | ???????????? " ????????????????###"#???##"" | | ???????????? " #????????###???#""#"##### | | ????????????#" #?????### ####"### " # "# | | ????????????# " ??#### #;;## | | ?????????????""" R### ; ;;; | | ??????????????""R #""## | | ??????????? "R @ ###### | | ????????????## ## ##????## | | ?????????????#######% #?# ##??#### | | ???????????????????###??# ### #" | | ???????????????????????### | | ???????????????????????# # #" # | | ???????????????????????## # & ###"# # # | | ???????????????????###?# #& & ###"#####" | | ??????????????????## ## ### % #?# ????### | | ??????????????????# ##?#####? ??????### | | ??????????????????# #??????## ????????? | | ??????????????????#### #???????##????????? | | ?????????????????????## % #???????????? | | ??????????????????????# #???????????? | | ?????????????????????? ####???????????? | | ????????????????????? ## ##??????????????? | | ???????????????????? % ## #????????????????? | | ??????????????????? #### #???????????????? | | ??????????????????## #???## #??????????????? | | ???????????????????# ????? #?????????????? | | ???????????????????# ????? ?????????????? | | ??????????????????? % ????? ?????????????? | | ??????????????????? ??????? ??????????????? | | ?????????????????? ????????????????????????? | | ????????????????????### ????????????????????????? | +----------------------------------------------------+ Best States ------------- Heat Dissipation 25 Coolant Potential 50 Energy Generation 10 Energy Capacity 250 Matter Stores 300 Matter Capacity 300 Sight Range 16 Terrain Scan Density 10 Evasion (%) 50 Recoil Reduction 2 Item Schematics ----------------- None Robot Schematics ------------------ None Fabricated ------------ Nothing Alien Tech Used ----------------- None Achievements -------------- None Challenges ------------ None Game ------ Seed IntegrityAmuletShifter Manual? 0 Play Time 00:17:13 Cumulative 17.0 hours Start 2024.09.20 @ 14:12:26 End 2024.09.20 @ 14:27:04 Sessions 1 Manual Loads 0 Difficulty Rogue Special Mode None Game No. 36 Rogue 31 Adventurer 5 Explorer 0 Win Type - Total 0 Types 0/0/0/0/0/0/0/0/0 Lore% 8 Gallery% 15 Achievement% 14 Wizard Run 0 Options --------- Layout 0 ASCII 0 Keyboard 0 Movement Numpad Keybinds 0 Fullscreen 1 Font 18/SmallcapsGlow Map View 76x50 Zoom Use 0% Tactical HUD 1 Map Filters NONE Filters NONE Steam 1 RUN: 18ee4175-c405-4277-9170-46b26a4dc479